[Event "2nd Bieszczady Chess-ch B 2022"]
[Site "Bystre"]
[Date "2022.07.23"]
[Round "8.2"]
[White "Sola, Wojciech"]
[Black "Kusiak, Mateusz"]
[Result "0-1"]
[ECO "A39"]
[WhiteElo "1780"]
[BlackElo "1693"]
[Annotator "NA RC COMBH"]
[PlyCount "82"]
[EventDate "2022.07.17"]
[EventCountry "POL"]
[SourceTitle "playchess.com"]
[Source "ChessBase"]
[SourceQuality "1"]
[TimeControl "5400+30"]

1. c4 {[%emt 0:00:04]} c5 {[%emt 0:00:09]} 2. Nc3 {[%emt 0:00:14]} g6 {[%emt 0:00:20]} 3. g3 {[%emt 0:00:15]} Bg7 {[%emt 0:00:04]} 4. Bg2 {[%emt 0:00:19]} Nc6 {[%emt 0:00:06]} 5. Nf3 {[%emt 0:00:24]} Nf6 {[%emt 0:00:24]} 6. O-O {[%emt 0:00:00]} O-O {[%emt 0:00:00]} 7. d4 {[%emt 0:00:02]} cxd4 {[%emt 0:00:00]} 8. Nxd4 {[%emt 0:00:17]} Nxd4 {[%emt 0:00:05]} 9. Qxd4 {[%emt 0:00:30]} d6 {[%emt 0:00:10]} 10. Qd2 {[%emt 0:02:07]} Qc7 {[%emt 0:08:10]} 11. b3 {[%emt 0:00:26]} Bd7 {[%emt 0:00:29]} 12. Bb2 {[%emt 0:00:22]} Bc6 {[%emt 0:00:52]} 13. e4 {[%emt 0:01:06]} Rfc8 {[%emt 0:02:56]} 14. Rac1 {[%emt 0:01:38]} Qa5 {[%emt 0:02:02]} 15. Rfd1 {[%emt 0:00:39]} a6 {[%emt 0:01:34]} 16. Nd5 {[%emt 0:01:52]} Qxd2 {[%emt 0:00:36]} 17. Rxd2 {[%emt 0:01:30]} Bxd5 {[%emt 0:00:41]} 18. exd5 {[%emt 0:01:09]} Nd7 {[%emt 0:10:53]} 19. Bxg7 {[%emt 0:01:00]} Kxg7 {[%emt 0:00:09]} 20. Rdc2 {[%emt 0:31:53]} Ne5 {[%emt 0:16:21]} 21. Re1 {[%emt 0:04:06]} Kf8 {[%emt 0:00:18]} 22. Rc3 {[%emt 0:01:21]} b6 {[%emt 0:03:31]} 23. Rce3 {[%emt 0:10:41]} Rc7 {[%emt 0:01:51]} 24. h3 {[%emt 0:10:50]} f6 {[%emt 0:04:01]} 25. f4 {[%emt 0:03:50]} Nf7 {[%emt 0:00:02]} 26. Kf2 {[%emt 0:00:29]} Nd8 {[%emt 0:08:16]} 27. g4 {[%emt 0:04:47]} Nb7 {[%emt 0:03:22]} 28. Be4 {[%emt 0:02:19]} b5 {[%emt 0:02:13]} 29. Bd3 {[%emt 0:04:12]} Nc5 {[%emt 0:02:06]} 30. Be2 {[%emt 0:00:02]} bxc4 {[%emt 0:05:38]} 31. Bxc4 {[%emt 0:00:15]} Rb8 {[%emt 0:01:47]} 32. Rg1 {[%emt 0:01:26]} a5 {[%emt 0:01:51]} 33. a4 {[%emt 0:00:37]} Nxa4 {[%emt 0:00:10]} 34. Ra1 {[%emt 0:00:15]} Nb6 {[%emt 0:00:32]} 35. Rxa5 {[%emt 0:02:01]} Nxc4 {[%emt 0:01:00]} 36. bxc4 {[%emt 0:00:10]} Rxc4 {[%emt 0:00:04]} 37. Kf3 {[%emt 0:01:09]} Rbb4 {[%emt 0:00:06]} 38. Ra8+ {[%emt 0:00:31]} Kf7 {[%emt 0:01:01]} 39. Ra7 {[%emt 0:00:02]} Rxf4+ {[%emt 0:00:09]} 40. Kg3 {[%emt 0:00:40]} Rfe4 {[%emt 0:00:27]} 41. Rc3 {[%emt 0:01:21]} Re5 {[%emt 0:01:21]} 0-1

[Event "2nd Bieszczady Chess-ch B 2022"]
[Site "Bystre"]
[Date "2022.07.23"]
[Round "8.3"]
[White "Tokarz, Izabela"]
[Black "Panczuk, Grzegorz"]
[Result "1-0"]
[ECO "D88"]
[WhiteElo "1694"]
[BlackElo "1684"]
[Annotator "NA RC COMBH"]
[PlyCount "69"]
[EventDate "2022.07.17"]
[EventCountry "POL"]
[SourceTitle "playchess.com"]
[Source "ChessBase"]
[SourceQuality "1"]
[TimeControl "5400+30"]

1. d4 {[%emt 0:00:01]} Nf6 {[%emt 0:00:05]} 2. c4 {[%emt 0:00:03]} g6 {[%emt 0:00:06]} 3. Nc3 {[%emt 0:00:03]} d5 {[%emt 0:00:04]} 4. cxd5 {[%emt 0:00:04]} Nxd5 {[%emt 0:00:03]} 5. e4 {[%emt 0:00:04]} Nxc3 {[%emt 0:00:05]} 6. bxc3 {[%emt 0:00:04]} Bg7 {[%emt 0:00:05]} 7. Bc4 {[%emt 0:00:04]} c5 {[%emt 0:00:06]} 8. Ne2 {[%emt 0:00:04]} Nc6 {[%emt 0:00:06]} 9. Be3 {[%emt 0:00:05]} cxd4 {[%emt 0:00:11]} 10. cxd4 {[%emt 0:00:06]} O-O {[%emt 0:00:05]} 11. O-O {[%emt 0:00:08]} Bg4 {[%emt 0:00:04]} 12. f3 {[%emt 0:00:05]} Na5 {[%emt 0:00:03]} 13. Bxf7+ {[%emt 0:06:43]} Rxf7 {[%emt 0:01:41]} 14. fxg4 {[%emt 0:00:04]} Rxf1+ {[%emt 0:00:12]} 15. Kxf1 {[%emt 0:00:03]} Nc4 {[%emt 0:12:15]} 16. Qd3 {[%emt 0:14:42]} Nxe3+ {[%emt 0:09:43]} 17. Qxe3 {[%emt 0:00:04]} Qb6 {[%emt 0:00:22]} 18. Qb3+ {[%emt 0:00:57]} Qxb3 {[%emt 0:03:18]} 19. axb3 {[%emt 0:00:03]} a5 {[%emt 0:02:08]} 20. e5 {[%emt 0:01:48]} Bh6 {[%emt 0:03:02]} 21. Nc3 {[%emt 0:03:43]} Bd2 {[%emt 0:05:21]} 22. Ne4 {[%emt 0:11:27]} Bb4 {[%emt 0:07:56]} 23. Ke2 {[%emt 0:00:24]} Rc8 {[%emt 0:04:33]} 24. Kd3 {[%emt 0:01:28]} h6 {[%emt 0:01:42]} 25. h4 {[%emt 0:06:52]} Kf7 {[%emt 0:02:50]} 26. d5 {[%emt 0:02:37]} Rd8 {[%emt 0:04:36]} 27. Kd4 {[%emt 0:01:14]} Rc8 {[%emt 0:00:09]} 28. Rf1+ {[%emt 0:01:00]} Kg8 {[%emt 0:00:36]} 29. d6 {[%emt 0:00:29]} exd6 {[%emt 0:02:59]} 30. exd6 {[%emt 0:02:30]} Rd8 {[%emt 0:00:44]} 31. Kd5 {[%emt 0:00:28]} Kg7 {[%emt 0:00:35]} 32. Rc1 {[%emt 0:01:21]} b5 {[%emt 0:02:48]} 33. Rc7+ {[%emt 0:00:04]} Kf8 {[%emt 0:00:18]} 34. Rb7 {[%emt 0:00:20]} a4 {[%emt 0:02:03]} 35. bxa4 {[%emt 0:00:05]} 1-0

[Event "2nd Bieszczady Chess-ch B 2022"]
[Site "Bystre"]
[Date "2022.07.23"]
[Round "8.4"]
[White "Gluch, Pawel"]
[Black "Warchol, Jacek"]
[Result "1/2-1/2"]
[ECO "C15"]
[WhiteElo "1663"]
[BlackElo "1785"]
[Annotator "NA RC COMBH"]
[PlyCount "108"]
[EventDate "2022.07.17"]
[EventCountry "POL"]
[SourceTitle "playchess.com"]
[Source "ChessBase"]
[SourceQuality "1"]
[TimeControl "5400+30"]

1. e4 {[%emt 0:00:03]} e6 {[%emt 0:04:01]} 2. d4 {[%emt 0:00:03]} d5 {[%emt 0:00:05]} 3. Nc3 {[%emt 0:00:05]} Bb4 {[%emt 0:00:23]} 4. Qd3 {[%emt 0:00:06]} dxe4 {[%emt 0:02:08]} 5. Qxe4 {[%emt 0:00:21]} Nf6 {[%emt 0:00:27]} 6. Qh4 {[%emt 0:01:49]} O-O {[%emt 0:03:28]} 7. Bd3 {[%emt 0:00:28]} Bxc3+ {[%emt 0:04:41]} 8. bxc3 {[%emt 0:00:19]} Qd5 {[%emt 0:00:24]} 9. Bg5 {[%emt 0:03:15]} Nbd7 {[%emt 0:00:27]} 10. Nf3 {[%emt 0:00:57]} h6 {[%emt 0:01:05]} 11. Bf4 {[%emt 0:14:18]} c5 {[%emt 0:11:24]} 12. c4 {[%emt 0:01:37]} Qh5 {[%emt 0:01:37]} 13. Qxh5 {[%emt 0:01:23]} Nxh5 {[%emt 0:00:02]} 14. Bd6 {[%emt 0:00:07]} Re8 {[%emt 0:00:16]} 15. dxc5 {[%emt 0:00:22]} e5 {[%emt 0:01:31]} 16. Be4 {[%emt 0:03:10]} Ndf6 {[%emt 0:05:36]} 17. Bd5 {[%emt 0:01:17]} Nf4 {[%emt 0:05:24]} 18. O-O-O {[%emt 0:12:59]} N4xd5 {[%emt 0:06:17]} 19. cxd5 {[%emt 0:00:15]} Ne4 {[%emt 0:01:09]} 20. Rhe1 {[%emt 0:02:52]} Nxd6 {[%emt 0:06:02]} 21. cxd6 {[%emt 0:00:05]} Bg4 {[%emt 0:00:22]} 22. d7 {[%emt 0:16:09]} Red8 {[%emt 0:08:49]} 23. Rxe5 {[%emt 0:03:01]} Bxf3 {[%emt 0:00:27]} 24. gxf3 {[%emt 0:00:08]} Rxd7 {[%emt 0:00:05]} 25. Kb2 {[%emt 0:03:42]} Rc8 {[%emt 0:02:59]} 26. Kb3 {[%emt 0:01:51]} Rc5 {[%emt 0:04:37]} 27. Re8+ {[%emt 0:03:32]} Kh7 {[%emt 0:00:14]} 28. d6 {[%emt 0:00:50]} Rc6 {[%emt 0:08:50]} 29. Re7 {[%emt 0:00:15]} Rdxd6 {[%emt 0:00:22]} 30. Rxd6 {[%emt 0:00:14]} Rxd6 {[%emt 0:00:02]} 31. Rxb7 {[%emt 0:00:11]} Rf6 {[%emt 0:00:31]} 32. Rxa7 {[%emt 0:12:44]} Rxf3+ {[%emt 0:01:56]} 33. c3 {[%emt 0:00:48]} f5 {[%emt 0:05:02]} 34. a4 {[%emt 0:01:15]} Rxf2 {[%emt 0:00:44]} 35. a5 {[%emt 0:00:08]} Rf1 {[%emt 0:00:23]} 36. Kb2 {[%emt 0:00:15]} Kg6 {[%emt 0:03:39]} 37. a6 {[%emt 0:00:18]} Rf2+ {[%emt 0:00:18]} 38. Kb3 {[%emt 0:00:05]} Re2 {[%emt 0:01:29]} 39. Rb7 {[%emt 0:01:46]} Re6 {[%emt 0:03:14]} 40. a7 {[%emt 0:00:08]} Ra6 {[%emt 0:00:03]} 41. c4 {[%emt 0:04:09]} f4 {[%emt 0:02:49]} 42. Kc3 {[%emt 0:00:50]} Kf5 {[%emt 0:03:02]} 43. Rxg7 {[%emt 0:02:16]} Ke4 {[%emt 0:03:41]} 44. Re7+ {[%emt 0:04:54]} Kf3 {[%emt 0:00:02]} 45. Rh7 {[%emt 0:05:26]} Kg2 {[%emt 0:00:32]} 46. Rxh6 {[%emt 0:00:19]} Rxa7 {[%emt 0:00:04]} 47. Rf6 {[%emt 0:00:28]} f3 {[%emt 0:00:24]} 48. Kd4 {[%emt 0:01:20]} f2 {[%emt 0:00:52]} 49. c5 {[%emt 0:00:15]} f1=Q {[%emt 0:02:08]} 50. Rxf1 {[%emt 0:00:06]} Kxf1 {[%emt 0:00:03]} 51. c6 {[%emt 0:00:33]} Kg2 {[%emt 0:00:18]} 52. h4 {[%emt 0:00:13]} Kg3 {[%emt 0:00:17]} 53. Kd5 {[%emt 0:00:14]} Kf4 {[%emt 0:01:19]} 54. Kd6 {[%emt 0:00:07]} Kg4 {[%emt 0:00:26]} 1/2-1/2

[Event "2nd Bieszczady Chess-ch B 2022"]
[Site "Bystre"]
[Date "2022.07.23"]
[Round "8.5"]
[White "Polak, Sylwia"]
[Black "Zajac, Karol"]
[Result "1/2-1/2"]
[ECO "D18"]
[WhiteElo "1574"]
[BlackElo "1579"]
[Annotator "NA RC COMBH"]
[PlyCount "45"]
[EventDate "2022.07.17"]
[EventCountry "POL"]
[SourceTitle "playchess.com"]
[Source "ChessBase"]
[SourceQuality "1"]
[TimeControl "5400+30"]

1. d4 {[%emt 0:00:02]} d5 {[%emt 0:03:28]} 2. c4 {[%emt 0:00:06]} c6 {[%emt 0:00:17]} 3. Nc3 {[%emt 0:00:05]} Nf6 {[%emt 0:00:19]} 4. Nf3 {[%emt 0:00:05]} dxc4 {[%emt 0:00:24]} 5. a4 {[%emt 0:02:14]} Bf5 {[%emt 0:00:34]} 6. e3 {[%emt 0:00:18]} e6 {[%emt 0:00:11]} 7. Bxc4 {[%emt 0:00:16]} Bb4 {[%emt 0:00:09]} 8. O-O {[%emt 0:00:19]} Nbd7 {[%emt 0:00:19]} 9. Qe2 {[%emt 0:00:25]} O-O {[%emt 0:01:03]} 10. e4 {[%emt 0:01:14]} Bg6 {[%emt 0:00:54]} 11. e5 {[%emt 0:08:03]} Nd5 {[%emt 0:01:21]} 12. Ne4 {[%emt 0:03:32]} a5 {[%emt 0:06:27]} 13. Bg5 {[%emt 0:02:19]} Be7 {[%emt 0:05:48]} 14. Bxe7 {[%emt 0:00:57]} Qxe7 {[%emt 0:00:42]} 15. Rac1 {[%emt 0:01:41]} N7b6 {[%emt 0:03:12]} 16. Bb3 {[%emt 0:01:57]} Nf4 {[%emt 0:08:17]} 17. Qe3 {[%emt 0:05:30]} Nbd5 {[%emt 0:00:44]} 18. Bxd5 {[%emt 0:00:21]} Nxd5 {[%emt 0:01:14]} 19. Qe2 {[%emt 0:03:05]} Nf4 {[%emt 0:09:02]} 20. Qe3 {[%emt 0:00:31]} Nd5 {[%emt 0:00:09]} 21. Qe2 {[%emt 0:02:09]} Nf4 {[%emt 0:03:59]} 22. Qe3 {[%emt 0:00:14]} Nd5 {[%emt 0:00:09]} 23. Qe2 1/2-1/2

[Event "2nd Bieszczady Chess-ch B 2022"]
[Site "Bystre"]
[Date "2022.07.23"]
[Round "8.6"]
[White "Giefert, Sara"]
[Black "Tokarz, Gabriela"]
[Result "1-0"]
[ECO "B50"]
[WhiteElo "1692"]
[BlackElo "1412"]
[Annotator "NA RC COMBH"]
[PlyCount "122"]
[EventDate "2022.07.17"]
[EventCountry "POL"]
[SourceTitle "playchess.com"]
[Source "ChessBase"]
[SourceQuality "1"]
[TimeControl "5400+30"]

1. e4 {[%emt 0:00:03]} c5 {[%emt 0:00:14]} 2. Nf3 {[%emt 0:00:27]} d6 {[%emt 0:00:11]} 3. c3 {[%emt 0:00:29]} Nf6 {[%emt 0:00:19]} 4. h3 {[%emt 0:00:25]} Nc6 {[%emt 0:00:24]} 5. Bd3 {[%emt 0:00:28]} g6 {[%emt 0:00:59]} 6. Bc2 {[%emt 0:00:54]} Bg7 {[%emt 0:01:16]} 7. O-O {[%emt 0:00:43]} O-O {[%emt 0:00:34]} 8. d4 {[%emt 0:00:28]} cxd4 {[%emt 0:00:20]} 9. cxd4 {[%emt 0:00:07]} d5 {[%emt 0:01:16]} 10. e5 {[%emt 0:00:09]} Nd7 {[%emt 0:00:10]} 11. Nc3 {[%emt 0:02:54]} e6 {[%emt 0:00:32]} 12. Re1 {[%emt 0:02:42]} a6 {[%emt 0:01:25]} 13. a4 {[%emt 0:03:29]} Nb6 {[%emt 0:04:49]} 14. Bg5 {[%emt 0:05:18]} Qc7 {[%emt 0:01:32]} 15. Rc1 {[%emt 0:03:10]} Bd7 {[%emt 0:04:01]} 16. Bb1 {[%emt 0:04:07]} Qb8 {[%emt 0:03:17]} 17. b3 {[%emt 0:06:50]} Re8 {[%emt 0:03:16]} 18. Qd2 {[%emt 0:03:02]} Nc8 {[%emt 0:04:27]} 19. Bh6 {[%emt 0:05:01]} N8e7 {[%emt 0:01:10]} 20. Bxg7 {[%emt 0:04:32]} Kxg7 {[%emt 0:00:18]} 21. h4 {[%emt 0:01:53]} Qa7 {[%emt 0:02:21]} 22. h5 {[%emt 0:04:11]} Ng8 {[%emt 0:01:31]} 23. Ne2 {[%emt 0:07:28]} Qb6 {[%emt 0:01:15]} 24. Rc3 {[%emt 0:01:34]} Rac8 {[%emt 0:01:21]} 25. Rec1 {[%emt 0:02:43]} Na5 {[%emt 0:01:34]} 26. Qd3 {[%emt 0:02:29]} Rxc3 {[%emt 0:02:35]} 27. Rxc3 {[%emt 0:00:13]} Rc8 {[%emt 0:00:28]} 28. Rxc8 {[%emt 0:01:56]} Bxc8 {[%emt 0:00:43]} 29. Bc2 {[%emt 0:02:48]} Nc6 {[%emt 0:02:46]} 30. Qe3 {[%emt 0:01:08]} Bd7 {[%emt 0:04:10]} 31. g4 {[%emt 0:05:51]} Qc7 {[%emt 0:01:35]} 32. Bb1 {[%emt 0:01:42]} Na5 {[%emt 0:00:26]} 33. hxg6 {[%emt 0:01:22]} hxg6 {[%emt 0:00:56]} 34. Ng5 {[%emt 0:03:05]} Nh6 {[%emt 0:02:45]} 35. f3 {[%emt 0:01:57]} Qb6 {[%emt 0:02:37]} 36. Bc2 {[%emt 0:01:22]} Qc7 {[%emt 0:00:37]} 37. Qd3 {[%emt 0:01:02]} b5 {[%emt 0:01:26]} 38. Nf4 {[%emt 0:00:54]} bxa4 {[%emt 0:00:48]} 39. Nfxe6+ {[%emt 0:01:29]} Bxe6 {[%emt 0:00:10]} 40. Nxe6+ {[%emt 0:00:03]} fxe6 {[%emt 0:00:11]} 41. Qxg6+ {[%emt 0:00:06]} Kf8 {[%emt 0:00:45]} 42. Qxh6+ {[%emt 0:00:12]} Ke7 {[%emt 0:00:39]} 43. Qg7+ {[%emt 0:01:27]} Kd8 {[%emt 0:00:07]} 44. Qxc7+ {[%emt 0:00:57]} Kxc7 {[%emt 0:00:02]} 45. bxa4 {[%emt 0:00:01]} Kd7 {[%emt 0:00:05]} 46. Kf2 {[%emt 0:00:38]} Ke7 {[%emt 0:00:18]} 47. f4 {[%emt 0:02:14]} Nc6 {[%emt 0:00:15]} 48. Ke3 {[%emt 0:00:17]} a5 {[%emt 0:00:52]} 49. f5 {[%emt 0:00:16]} exf5 {[%emt 0:00:14]} 50. gxf5 {[%emt 0:00:07]} Kf7 {[%emt 0:00:31]} 51. Bb3 {[%emt 0:00:43]} Nb4 {[%emt 0:00:31]} 52. Kf4 {[%emt 0:00:36]} Ke7 {[%emt 0:00:33]} 53. Kg5 {[%emt 0:00:31]} Nc6 {[%emt 0:00:10]} 54. Bxd5 {[%emt 0:01:26]} Nxd4 {[%emt 0:00:12]} 55. f6+ {[%emt 0:00:34]} Kf8 {[%emt 0:00:39]} 56. e6 {[%emt 0:00:56]} Ke8 {[%emt 0:00:08]} 57. Kf4 {[%emt 0:00:31]} Kf8 {[%emt 0:00:23]} 58. Ke5 {[%emt 0:00:08]} Nxe6 {[%emt 0:01:24]} 59. Kxe6 {[%emt 0:00:13]} Ke8 {[%emt 0:00:05]} 60. f7+ {[%emt 0:00:27]} Kf8 {[%emt 0:00:05]} 61. Bc6 {[%emt 0:00:27]} Kg7 {[%emt 0:00:08]} 1-0

[Event "2nd Bieszczady Chess-ch B 2022"]
[Site "Bystre"]
[Date "2022.07.23"]
[Round "8.7"]
[White "Sternik, Piotr"]
[Black "Strojek, Kazimierz"]
[Result "1-0"]
[ECO "A45"]
[WhiteElo "1434"]
[BlackElo "1668"]
[Annotator "NA RC COMBH"]
[PlyCount "53"]
[EventDate "2022.07.17"]
[EventCountry "POL"]
[SourceTitle "playchess.com"]
[Source "ChessBase"]
[SourceQuality "1"]
[TimeControl "5400+30"]

1. d4 {[%emt 0:00:02]} Nf6 {[%emt 0:00:10]} 2. Bg5 {[%emt 0:00:07]} e6 {[%emt 0:00:52]} 3. e3 {[%emt 0:00:51]} Be7 {[%emt 0:00:06]} 4. Bd3 {[%emt 0:00:19]} d5 {[%emt 0:01:14]} 5. Nf3 {[%emt 0:00:09]} Nbd7 {[%emt 0:02:09]} 6. O-O {[%emt 0:00:13]} Ng4 {[%emt 0:00:27]} 7. Bxe7 {[%emt 0:00:08]} Qxe7 {[%emt 0:00:11]} 8. h3 {[%emt 0:00:18]} Nh6 {[%emt 0:00:32]} 9. Nbd2 {[%emt 0:00:24]} f5 {[%emt 0:02:14]} 10. c4 {[%emt 0:00:27]} c6 {[%emt 0:00:04]} 11. cxd5 {[%emt 0:00:10]} exd5 {[%emt 0:00:37]} 12. Rb1 {[%emt 0:00:26]} O-O {[%emt 0:01:48]} 13. b4 {[%emt 0:00:50]} a6 {[%emt 0:00:43]} 14. a4 {[%emt 0:00:07]} Nf6 {[%emt 0:00:59]} 15. b5 {[%emt 0:00:20]} axb5 {[%emt 0:00:32]} 16. axb5 {[%emt 0:00:05]} Ne4 {[%emt 0:02:20]} 17. Qc2 {[%emt 0:01:06]} Nf7 {[%emt 0:00:28]} 18. bxc6 {[%emt 0:00:16]} bxc6 {[%emt 0:01:46]} 19. Qxc6 {[%emt 0:00:16]} Be6 {[%emt 0:00:02]} 20. Rb7 {[%emt 0:01:26]} Qd6 {[%emt 0:01:09]} 21. Qxd6 {[%emt 0:00:53]} Nfxd6 {[%emt 0:00:10]} 22. Re7 {[%emt 0:00:18]} Rfe8 {[%emt 0:00:35]} 23. Rxe8+ {[%emt 0:00:37]} Rxe8 {[%emt 0:01:23]} 24. Rb1 {[%emt 0:00:45]} Re7 {[%emt 0:02:12]} 25. Rb8+ {[%emt 0:01:17]} Re8 {[%emt 0:01:11]} 26. Rb6 {[%emt 0:01:13]} Nf7 {[%emt 0:12:33]} 27. Bb5 {[%emt 0:01:51]} 1-0

[Event "2nd Bieszczady Chess-ch B 2022"]
[Site "Bystre"]
[Date "2022.07.23"]
[Round "8.8"]
[White "Mikula, Maciej"]
[Black "Ochalik, Filip"]
[Result "1/2-1/2"]
[ECO "C11"]
[WhiteElo "1620"]
[BlackElo "1342"]
[Annotator "NA RC COMBH"]
[PlyCount "82"]
[EventDate "2022.07.17"]
[EventCountry "POL"]
[SourceTitle "playchess.com"]
[Source "ChessBase"]
[SourceQuality "1"]
[TimeControl "5400+30"]

1. e4 {[%emt 0:03:48]} e6 {[%emt 0:01:52]} 2. Nf3 {[%emt 0:05:32]} d5 {[%emt 0:00:54]} 3. Nc3 {[%emt 0:03:48]} Nf6 {[%emt 0:02:50]} 4. exd5 {[%emt 0:02:37]} exd5 {[%emt 0:00:36]} 5. d4 {[%emt 0:05:23]} Bg4 {[%emt 0:01:59]} 6. Be2 {[%emt 0:01:31]} Be7 {[%emt 0:01:09]} 7. O-O {[%emt 0:01:26]} O-O {[%emt 0:00:19]} 8. Bf4 {[%emt 0:03:26]} Nh5 {[%emt 0:08:27]} 9. Be3 {[%emt 0:02:04]} c6 {[%emt 0:02:17]} 10. h3 {[%emt 0:03:15]} Be6 {[%emt 0:03:08]} 11. Qd2 {[%emt 0:04:50]} h6 {[%emt 0:09:46]} 12. Rfe1 {[%emt 0:06:46]} Nd7 {[%emt 0:08:59]} 13. Bd3 {[%emt 0:05:12]} c5 {[%emt 0:05:12]} 14. dxc5 {[%emt 0:07:29]} Nxc5 {[%emt 0:02:40]} 15. Nd4 {[%emt 0:01:08]} a6 {[%emt 0:07:06]} 16. Nxe6 {[%emt 0:02:35]} fxe6 {[%emt 0:04:42]} 17. Bg6 {[%emt 0:01:09]} Nf6 {[%emt 0:01:44]} 18. Bd4 {[%emt 0:05:34]} a5 {[%emt 0:07:48]} 19. Qe3 {[%emt 0:03:16]} Nfd7 {[%emt 0:06:11]} 20. Nxd5 {[%emt 0:06:20]} Bg5 {[%emt 0:01:50]} 21. f4 {[%emt 0:01:08]} exd5 {[%emt 0:01:29]} 22. fxg5 {[%emt 0:00:51]} Ra6 {[%emt 0:01:05]} 23. Bxc5 {[%emt 0:04:58]} Nxc5 {[%emt 0:00:56]} 24. Qxc5 {[%emt 0:01:04]} Rxg6 {[%emt 0:00:20]} 25. gxh6 {[%emt 0:02:27]} gxh6 {[%emt 0:00:52]} 26. Rad1 Rf5 {[%emt 0:03:55]} 27. Re7 {[%emt 0:05:11]} Qf8 {[%emt 0:01:21]} 28. Qe3 {[%emt 0:03:12]} d4 {[%emt 0:03:55]} 29. Qe2 {[%emt 0:02:05]} Rfg5 {[%emt 0:01:32]} 30. g4 {[%emt 0:01:37]} Qf4 {[%emt 0:02:48]} 31. Qc4+ {[%emt 0:01:34]} Kf8 {[%emt 0:00:33]} 32. Qc8+ {[%emt 0:00:22]} Kxe7 {[%emt 0:00:43]} 33. Re1+ {[%emt 0:00:03]} Re5 {[%emt 0:04:01]} 34. Qc7+ {[%emt 0:02:05]} Ke6 {[%emt 0:00:12]} 35. Qc8+ {[%emt 0:01:05]} Kd6 {[%emt 0:01:28]} 36. Qb8+ {[%emt 0:00:46]} Ke6 {[%emt 0:00:17]} 37. Qc8+ {[%emt 0:01:29]} Kd6 {[%emt 0:00:18]} 38. Qb8+ {[%emt 0:00:12]} Ke6 {[%emt 0:00:14]} 39. Qc8+ {[%emt 0:01:58]} Kf6 40. Qc7 Ke6 41. Qd8 Qf8 1/2-1/2

[Event "2nd Bieszczady Chess-ch B 2022"]
[Site "Bystre"]
[Date "2022.07.23"]
[Round "8.9"]
[White "Labedz, Dawid"]
[Black "Kryston, Aleksander"]
[Result "1/2-1/2"]
[ECO "B77"]
[WhiteElo "1562"]
[BlackElo "1216"]
[Annotator "NA RC COMBH"]
[PlyCount "95"]
[EventDate "2022.07.17"]
[EventCountry "POL"]
[SourceTitle "playchess.com"]
[Source "ChessBase"]
[SourceQuality "1"]
[TimeControl "5400+30"]

1. e4 {[%emt 0:00:02]} c5 {[%emt 0:00:04]} 2. Nf3 {[%emt 0:00:05]} g6 {[%emt 0:00:39]} 3. d4 {[%emt 0:00:06]} cxd4 {[%emt 0:00:06]} 4. Nxd4 {[%emt 0:00:03]} d6 {[%emt 0:00:37]} 5. Nc3 {[%emt 0:00:41]} Bg7 {[%emt 0:00:17]} 6. Be3 {[%emt 0:00:46]} Nf6 {[%emt 0:00:18]} 7. Bc4 {[%emt 0:01:10]} Nc6 {[%emt 0:01:01]} 8. f3 {[%emt 0:08:01]} O-O {[%emt 0:04:57]} 9. Qd2 {[%emt 0:01:39]} a6 {[%emt 0:02:43]} 10. O-O-O {[%emt 0:01:56]} Bd7 {[%emt 0:04:57]} 11. g4 {[%emt 0:04:14]} b5 {[%emt 0:01:20]} 12. Bb3 {[%emt 0:01:59]} Nxd4 {[%emt 0:04:30]} 13. Bxd4 {[%emt 0:01:23]} a5 {[%emt 0:01:34]} 14. Nd5 {[%emt 0:03:16]} Nxe4 {[%emt 0:10:03]} 15. fxe4 {[%emt 0:07:45]} Bxd4 {[%emt 0:02:53]} 16. Qxd4 {[%emt 0:01:43]} a4 {[%emt 0:03:49]} 17. Nxe7+ {[%emt 0:03:10]} Qxe7 {[%emt 0:00:25]} 18. Bd5 {[%emt 0:00:02]} Bxg4 {[%emt 0:01:58]} 19. Rdf1 {[%emt 0:04:48]} Rab8 {[%emt 0:02:03]} 20. Rhg1 {[%emt 0:06:46]} Be6 {[%emt 0:00:54]} 21. h4 {[%emt 0:06:50]} Bxd5 {[%emt 0:07:50]} 22. Qxd5 {[%emt 0:01:56]} Qxh4 {[%emt 0:07:33]} 23. Rh1 {[%emt 0:02:40]} Qg3 {[%emt 0:02:11]} 24. Qd2 {[%emt 0:03:23]} Qe5 {[%emt 0:01:39]} 25. Rh6 {[%emt 0:05:05]} f6 {[%emt 0:09:24]} 26. Rfh1 {[%emt 0:04:55]} Rf7 {[%emt 0:02:39]} 27. Qd3 {[%emt 0:02:24]} Re8 {[%emt 0:04:04]} 28. Qh3 {[%emt 0:01:48]} Qe6 {[%emt 0:04:24]} 29. Rxg6+ {[%emt 0:01:08]} Kf8 {[%emt 0:01:02]} 30. Qh6+ {[%emt 0:07:37]} Ke7 {[%emt 0:00:05]} 31. Rg7 {[%emt 0:01:51]} Qxe4 {[%emt 0:01:27]} 32. Rf1 {[%emt 0:01:28]} Qe6 33. Rxh7 {[%emt 0:03:04]} Rxh7 {[%emt 0:04:22]} 34. Qxh7+ {[%emt 0:00:08]} Kd8 {[%emt 0:00:06]} 35. Qd3 {[%emt 0:00:31]} Qe5 {[%emt 0:01:49]} 36. Rf5 {[%emt 0:04:03]} Qe1+ {[%emt 0:00:20]} 37. Qd1 {[%emt 0:00:01]} Qe3+ {[%emt 0:00:13]} 38. Kb1 {[%emt 0:00:12]} Qg3 {[%emt 0:03:26]} 39. Rf1 {[%emt 0:00:44]} a3 {[%emt 0:01:22]} 40. bxa3 {[%emt 0:00:32]} Qxa3 {[%emt 0:00:16]} 41. Qd4 {[%emt 0:01:09]} Re5 {[%emt 0:02:42]} 42. Qb6+ {[%emt 0:01:18]} Kd7 {[%emt 0:00:51]} 43. Qd4 {[%emt 0:01:19]} Ke7 {[%emt 0:02:42]} 44. Qh4 {[%emt 0:00:25]} Qc3 {[%emt 0:02:03]} 45. Qxf6+ {[%emt 0:01:12]} Kd7 {[%emt 0:00:06]} 46. Qg7+ {[%emt 0:01:19]} Kc6 {[%emt 0:00:21]} 47. Qg2+ {[%emt 0:00:34]} Kb6 {[%emt 0:01:03]} 48. Rd1 {[%emt 0:01:58]} 1/2-1/2